Workbook

Sheet MATCH
A1: TOURNOI INTERNATIONAL DE FRANCE - SOUVENIR DENIS RANDON 2016
E2: 14ème Edition Clermont l'Hérault Samedi 5 Novembre
A4: SEXE | B4: Tir | C4: REG. | D4: Place | E4: NOMS | F4: Prénoms | G4: Nationalité | H4: AN | I4: POIDS | J4: 1 | K4: 2 | L4: 3 | M4: ARR | N4: 1 | O4: 2 | P4: 3 | Q4: EP-J | R4: Total | S4: IWF | T4: Class | V4: Catég | W4: Points | X4: DEP + | Y4: REG + | Z4: IRG + | AA4: FED + | AB4: NAT + | AC4: INTB + | AD4: INTA + | AE4: OLY + | AF4: NCL
E5: FEMMES
A6: F | E6: LORENTZ | F6: Manon | G6: Obernai | H6: 91 | I6: 50.25 | J6: 65 | K6: 68 | L6: 71 | M6: =IF(I6="","",IF(MAXA(J6:L6)<=0,0,MAXA(J6:L6))) -> 71 | N6: 80 | O6: 83 | P6: 86 | Q6: =IF(I6="","",IF(MAXA(N6:P6)<=0,0,MAXA(N6:P6))) -> 86 | R6: =IF(I6="","",IF(OR(M6=0,Q6=0),0,M6+Q6)) -> 157 | S6: =IF(I6="","",IF(A6="H",10^(0.794358141*LOG(I6/174.393)^2)*R6,IF(A6="F",10^(0.89726074*LOG(I6/148.026)^2)*R6,""))) -> 247.4184122 | T6: =RANK(S6,S6:S12) -> 1 | V6: =IF(I6="","",IF(A6="H",IF(OR(H6="SEN",H6<94),VLOOKUP(I6,Feuil1!$A$10:$E$28,5),IF(AND(H6>93,H6<97),VLOOKUP(I6,Feuil1!$A$10:$E$28,4),IF(AND(H6>93,H6<96),VLOOKUP(I6,Feuil1!$A$10:$E$28,3),IF(AND(H6>95,H6<2000),VLOOKUP(I6,Feuil1!$A$10:$E$28,3),VLOOKUP(I6,Feuil1!$A$10:$E$28,2))))),IF(OR(H6="SEN",H6<94),VLOOKUP(I6,Feuil1!$F$10:$J$24,5),IF(AND(H6>93,H6<97),VLOOKUP(I6,Feuil1!$F$10:$J$24,4),IF(AND(H6>93,H6<96),VLOOKUP(I6,Feuil1!$F$10:$J$24,4),IF(AND(H6>93,H6<2000),VLOOKUP(I6,Feuil1!$F$10:$J$24,3),VLOOKUP(I6,Feuil1!$F$10:$J$24,2))))))) -> FS53 | X6: =R6-HLOOKUP(#REF!,Feuil1!$C$1:$AU$9,2,FALSE) ->  | Y6: =R6-HLOOKUP(#REF!,Feuil1!$C$1:$AU$9,3,FALSE) ->  | Z6: =R6-HLOOKUP(#REF!,Feuil1!$C$1:$AU$9,4,FALSE) ->  | AA6: =R6-HLOOKUP(#REF!,Feuil1!$C$1:$AU$9,5,FALSE) ->  | AB6: =R6-HLOOKUP(#REF!,Feuil1!$C$1:$AU$9,6,FALSE) ->  | AC6: =R6-HLOOKUP(#REF!,Feuil1!$C$1:$AU$9,7,FALSE) ->  | AD6: =R6-HLOOKUP(#REF!,Feuil1!$C$1:$AU$9,8,FALSE) ->  | AE6: =R6-HLOOKUP(#REF!,Feuil1!$C$1:$AU$9,9,FALSE) ->  | AM6: =IF(AE6>=0,$AE$4,IF(AD6>=0,$AD$4,IF(AC6>=0,$AC$4,IF(AB6>=0,$AB$4,IF(AA6>=0,$AA$4,IF(Z6>=0,$Z$4,IF(Y6>=0,$Y$4,IF(X6>=0,$X$4,$AF$4)))))))) -> 
A7: F | E7: VIGNALI | F7: Véronica | G7: Italie | H7: 98 | I7: 64.3 | J7: 50 | K7: -54 | L7: -55 | M7: =IF(I7="","",IF(MAXA(J7:L7)<=0,0,MAXA(J7:L7))) -> 50 | N7: -68 | O7: 70 | P7: -74 | Q7: =IF(I7="","",IF(MAXA(N7:P7)<=0,0,MAXA(N7:P7))) -> 70 | R7: =IF(I7="","",IF(OR(M7=0,Q7=0),0,M7+Q7)) -> 120 | S7: =IF(I7="","",IF(A7="H",10^(0.794358141*LOG(I7/174.393)^2)*R7,IF(A7="F",10^(0.89726074*LOG(I7/148.026)^2)*R7,""))) -> 157.3419101 | T7: =RANK(S7,S6:S12) -> 6 | U7: =IF(I7="","",IF(AE7>=0,AE7,IF(AD7>=0,AD7,IF(AC7>=0,AC7,IF(AB7>=0,AB7,IF(AA7>=0,AA7,IF(Z7>=0,Z7,IF(Y7>=0,Y7,X7)))))))) -> 0 | V7: FJ69 | W7: =SUM(R7-(I7*2)) -> -8.6 | X7: =R7-HLOOKUP(V7,Feuil1!$C$1:$AU$9,2,FALSE) -> 45 | Y7: =R7-HLOOKUP(V7,Feuil1!$C$1:$AU$9,3,FALSE) -> 35 | Z7: =R7-HLOOKUP(V7,Feuil1!$C$1:$AU$9,4,FALSE) -> 20 | AA7: =R7-HLOOKUP(V7,Feuil1!$C$1:$AU$9,5,FALSE) -> 0 | AB7: =R7-HLOOKUP(V7,Feuil1!$C$1:$AU$9,6,FALSE) -> -15 | AC7: =R7-HLOOKUP(V7,Feuil1!$C$1:$AU$9,7,FALSE) -> -30 | AD7: =R7-HLOOKUP(V7,Feuil1!$C$1:$AU$9,8,FALSE) -> -45 | AE7: =R7-HLOOKUP(V7,Feuil1!$C$1:$AU$9,9,FALSE) -> -880 | AM7: =IF(AE7>=0,$AE$4,IF(AD7>=0,$AD$4,IF(AC7>=0,$AC$4,IF(AB7>=0,$AB$4,IF(AA7>=0,$AA$4,IF(Z7>=0,$Z$4,IF(Y7>=0,$Y$4,IF(X7>=0,$X$4,$AF$4)))))))) -> FED +
A8: F | E8: MONTERO | F8: Cristina | G8: Espagne | H8: 99 | I8: 47.55 | J8: 50 | K8: 52 | L8: 54 | M8: =IF(I8="","",IF(MAXA(J8:L8)<=0,0,MAXA(J8:L8))) -> 54 | N8: 60 | O8: 63 | P8: 65 | Q8: =IF(I8="","",IF(MAXA(N8:P8)<=0,0,MAXA(N8:P8))) -> 65 | R8: =IF(I8="","",IF(OR(M8=0,Q8=0),0,M8+Q8)) -> 119 | S8: =IF(I8="","",IF(A8="H",10^(0.794358141*LOG(I8/174.393)^2)*R8,IF(A8="F",10^(0.89726074*LOG(I8/148.026)^2)*R8,""))) -> 196.6940325 | T8: =RANK(S8,S6:S12) -> 4 | V8: FJ48 | X8: =R8-HLOOKUP(#REF!,Feuil1!$C$1:$AU$9,2,FALSE) ->  | Y8: =R8-HLOOKUP(#REF!,Feuil1!$C$1:$AU$9,3,FALSE) ->  | Z8: =R8-HLOOKUP(#REF!,Feuil1!$C$1:$AU$9,4,FALSE) ->  | AA8: =R8-HLOOKUP(#REF!,Feuil1!$C$1:$AU$9,5,FALSE) ->  | AB8: =R8-HLOOKUP(#REF!,Feuil1!$C$1:$AU$9,6,FALSE) ->  | AC8: =R8-HLOOKUP(#REF!,Feuil1!$C$1:$AU$9,7,FALSE) ->  | AD8: =R8-HLOOKUP(#REF!,Feuil1!$C$1:$AU$9,8,FALSE) ->  | AE8: =R8-HLOOKUP(#REF!,Feuil1!$C$1:$AU$9,9,FALSE) ->  | AM8: =IF(AE8>=0,$AE$4,IF(AD8>=0,$AD$4,IF(AC8>=0,$AC$4,IF(AB8>=0,$AB$4,IF(AA8>=0,$AA$4,IF(Z8>=0,$Z$4,IF(Y8>=0,$Y$4,IF(X8>=0,$X$4,$AF$4)))))))) -> 
A9: F | E9: PASCUAL | F9: Rafaela | G9: Espagne | H9: 98 | I9: 85.25 | J9: 75 | K9: 80 | L9: 82 | M9: =IF(I9="","",IF(MAXA(J9:L9)<=0,0,MAXA(J9:L9))) -> 82 | N9: 98 | O9: -101 | P9: 101 | Q9: =IF(I9="","",IF(MAXA(N9:P9)<=0,0,MAXA(N9:P9))) -> 101 | R9: =IF(I9="","",IF(OR(M9=0,Q9=0),0,M9+Q9)) -> 183 | S9: =IF(I9="","",IF(A9="H",10^(0.794358141*LOG(I9/174.393)^2)*R9,IF(A9="F",10^(0.89726074*LOG(I9/148.026)^2)*R9,""))) -> 206.0534702 | T9: =RANK(S9,S6:S12) -> 3 | V9: FJ+75 | X9: =R9-HLOOKUP(#REF!,Feuil1!$C$1:$AU$9,2,FALSE) ->  | Y9: =R9-HLOOKUP(#REF!,Feuil1!$C$1:$AU$9,3,FALSE) ->  | Z9: =R9-HLOOKUP(#REF!,Feuil1!$C$1:$AU$9,4,FALSE) ->  | AA9: =R9-HLOOKUP(#REF!,Feuil1!$C$1:$AU$9,5,FALSE) ->  | AB9: =R9-HLOOKUP(#REF!,Feuil1!$C$1:$AU$9,6,FALSE) ->  | AC9: =R9-HLOOKUP(#REF!,Feuil1!$C$1:$AU$9,7,FALSE) ->  | AD9: =R9-HLOOKUP(#REF!,Feuil1!$C$1:$AU$9,8,FALSE) ->  | AE9: =R9-HLOOKUP(#REF!,Feuil1!$C$1:$AU$9,9,FALSE) ->  | AM9: =IF(AE9>=0,$AE$4,IF(AD9>=0,$AD$4,IF(AC9>=0,$AC$4,IF(AB9>=0,$AB$4,IF(AA9>=0,$AA$4,IF(Z9>=0,$Z$4,IF(Y9>=0,$Y$4,IF(X9>=0,$X$4,$AF$4)))))))) -> 
A10: F | E10: SERMENGHI | F10: Irène | G10: Italie | H10: 99 | I10: 58.85 | J10: 50 | K10: -55 | L10: -56 | M10: =IF(I10="","",IF(MAXA(J10:L10)<=0,0,MAXA(J10:L10))) -> 50 | N10: 58 | O10: 62 | P10: -68 | Q10: =IF(I10="","",IF(MAXA(N10:P10)<=0,0,MAXA(N10:P10))) -> 62 | R10: =IF(I10="","",IF(OR(M10=0,Q10=0),0,M10+Q10)) -> 112 | S10: =IF(I10="","",IF(A10="H",10^(0.794358141*LOG(I10/174.393)^2)*R10,IF(A10="F",10^(0.89726074*LOG(I10/148.026)^2)*R10,""))) -> 156.0287629 | T10: =RANK(S10,S6:S12) -> 7 | U10: =IF(I10="","",IF(AE10>=0,AE10,IF(AD10>=0,AD10,IF(AC10>=0,AC10,IF(AB10>=0,AB10,IF(AA10>=0,AA10,IF(Z10>=0,Z10,IF(Y10>=0,Y10,X10)))))))) -> 2 | V10: FJ63 | W10: =SUM(R10-(I10*2)) -> -5.7 | X10: =R10-HLOOKUP(V10,Feuil1!$C$1:$AU$9,2,FALSE) -> 42 | Y10: =R10-HLOOKUP(V10,Feuil1!$C$1:$AU$9,3,FALSE) -> 32 | Z10: =R10-HLOOKUP(V10,Feuil1!$C$1:$AU$9,4,FALSE) -> 17 | AA10: =R10-HLOOKUP(V10,Feuil1!$C$1:$AU$9,5,FALSE) -> 2 | AB10: =R10-HLOOKUP(V10,Feuil1!$C$1:$AU$9,6,FALSE) -> -13 | AC10: =R10-HLOOKUP(V10,Feuil1!$C$1:$AU$9,7,FALSE) -> -28 | AD10: =R10-HLOOKUP(V10,Feuil1!$C$1:$AU$9,8,FALSE) -> -43 | AE10: =R10-HLOOKUP(V10,Feuil1!$C$1:$AU$9,9,FALSE) -> -888 | AM10: =IF(AE10>=0,$AE$4,IF(AD10>=0,$AD$4,IF(AC10>=0,$AC$4,IF(AB10>=0,$AB$4,IF(AA10>=0,$AA$4,IF(Z10>=0,$Z$4,IF(Y10>=0,$Y$4,IF(X10>=0,$X$4,$AF$4)))))))) -> FED +
A11: F | E11: ELPASO | F11: Sophie | G11: ALSDD Toulon | H11: 98 | I11: 68.4 | J11: 55 | K11: 58 | L11: 60 | M11: =IF(I11="","",IF(MAXA(J11:L11)<=0,0,MAXA(J11:L11))) -> 60 | N11: 72 | O11: 75 | P11: 78 | Q11: 78 | R11: 138 | S11: 174.07793 | T11: =RANK(S11,S6:S12) -> 5 | U11: 3 | V11: FJ69 | W11: =SUM(R11-(I11*2)) -> 1.2 | X11: =R11-HLOOKUP(V11,Feuil1!$C$1:$AU$9,2,FALSE) -> 63 | Y11: =R11-HLOOKUP(V11,Feuil1!$C$1:$AU$9,3,FALSE) -> 53 | Z11: =R11-HLOOKUP(V11,Feuil1!$C$1:$AU$9,4,FALSE) -> 38 | AA11: =R11-HLOOKUP(V11,Feuil1!$C$1:$AU$9,5,FALSE) -> 18 | AB11: =R11-HLOOKUP(V11,Feuil1!$C$1:$AU$9,6,FALSE) -> 3 | AC11: =R11-HLOOKUP(V11,Feuil1!$C$1:$AU$9,7,FALSE) -> -12 | AD11: =R11-HLOOKUP(V11,Feuil1!$C$1:$AU$9,8,FALSE) -> -27 | AE11: =R11-HLOOKUP(V11,Feuil1!$C$1:$AU$9,9,FALSE) -> -862 | AM11: NAT +
A12: F | E12: DUMARAIS | F12: Mélissa | G12: Caen CHM | H12: 92 | I12: 61 | J12: 68 | K12: -72 | L12: 72 | M12: 72 | N12: 85 | O12: 90 | P12: 92 | Q12: 92 | R12: 164 | S12: 222.7644911 | T12: =RANK(S12,S6:S12) -> 2 | U12: 24 | V12: =IF(I12="","",IF(A12="H",IF(OR(H12="SEN",H12<94),VLOOKUP(I12,Feuil1!$A$10:$E$28,5),IF(AND(H12>93,H12<97),VLOOKUP(I12,Feuil1!$A$10:$E$28,4),IF(AND(H12>93,H12<96),VLOOKUP(I12,Feuil1!$A$10:$E$28,3),IF(AND(H12>95,H12<2000),VLOOKUP(I12,Feuil1!$A$10:$E$28,3),VLOOKUP(I12,Feuil1!$A$10:$E$28,2))))),IF(OR(H12="SEN",H12<94),VLOOKUP(I12,Feuil1!$F$10:$J$24,5),IF(AND(H12>93,H12<97),VLOOKUP(I12,Feuil1!$F$10:$J$24,4),IF(AND(H12>93,H12<96),VLOOKUP(I12,Feuil1!$F$10:$J$24,4),IF(AND(H12>93,H12<2000),VLOOKUP(I12,Feuil1!$F$10:$J$24,3),VLOOKUP(I12,Feuil1!$F$10:$J$24,2))))))) -> FS63 | W12: =SUM(R12-(I12*2)) -> 42 | X12: =R12-HLOOKUP(V12,Feuil1!$C$1:$AU$9,2,FALSE) -> 79 | Y12: =R12-HLOOKUP(V12,Feuil1!$C$1:$AU$9,3,FALSE) -> 69 | Z12: =R12-HLOOKUP(V12,Feuil1!$C$1:$AU$9,4,FALSE) -> 54 | AA12: =R12-HLOOKUP(V12,Feuil1!$C$1:$AU$9,5,FALSE) -> 39 | AB12: =R12-HLOOKUP(V12,Feuil1!$C$1:$AU$9,6,FALSE) -> 24 | AC12: =R12-HLOOKUP(V12,Feuil1!$C$1:$AU$9,7,FALSE) -> -1 | AD12: =R12-HLOOKUP(V12,Feuil1!$C$1:$AU$9,8,FALSE) -> -21 | AE12: =R12-HLOOKUP(V12,Feuil1!$C$1:$AU$9,9,FALSE) -> -36 | AM12: NAT +
E14: Secrétaire de Compétition | G14: Arbitre | N14: Arbitre | T14: Arbitre
D15: Nom : | F15: Nom : | L15: Nom : | R15: Nom :
D16: Signature : | F16: Signature : | L16: Signature : | R16: Signature :
W519: J69 | X519: J77 | Y519: J85 | Z519: J94 | AA519: J105 | AB519: J+105 | AD519: J56 | AE519: J62 | AF519: J69 | AG519: J77 | AH519: J85 | AI519: J94 | AJ519: J105 | AK519: J+105 | AM519: S56 | AN519: S62 | AO519: S69 | AP519: S77 | AQ519: S85 | AR519: S94 | AS519: S105 | AT519: S+105
W520: 130 | X520: 145 | Y520: 160 | Z520: 170 | AA520: 180 | AB520: 190 | AD520: 100 | AE520: 115 | AF520: 130 | AG520: 145 | AH520: 160 | AI520: 170 | AJ520: 180 | AK520: 190 | AM520: 115 | AN520: 135 | AO520: 150 | AP520: 165 | AQ520: 180 | AR520: 190 | AS520: 200 | AT520: 210
W521: 150 | X521: 165 | Y521: 180 | Z521: 190 | AA521: 200 | AB521: 210 | AD521: 115 | AE521: 135 | AF521: 150 | AG521: 165 | AH521: 180 | AI521: 190 | AJ521: 200 | AK521: 210 | AM521: 130 | AN521: 150 | AO521: 165 | AP521: 185 | AQ521: 200 | AR521: 210 | AS521: 220 | AT521: 230
W522: 165 | X522: 185 | Y522: 200 | Z522: 210 | AA522: 220 | AB522: 230 | AD522: 130 | AE522: 150 | AF522: 165 | AG522: 185 | AH522: 200 | AI522: 210 | AJ522: 220 | AK522: 230 | AM522: 145 | AN522: 165 | AO522: 180 | AP522: 200 | AQ522: 220 | AR522: 230 | AS522: 240 | AT522: 250
W523: 180 | X523: 200 | Y523: 220 | Z523: 230 | AA523: 240 | AB523: 250 | AD523: 145 | AE523: 165 | AF523: 180 | AG523: 200 | AH523: 220 | AI523: 230 | AJ523: 240 | AK523: 250 | AM523: 175 | AN523: 195 | AO523: 215 | AP523: 235 | AQ523: 250 | AR523: 260 | AS523: 275 | AT523: 280
W524: 215 | X524: 235 | Y524: 250 | Z524: 260 | AA524: 275 | AB524: 280 | AD524: 175 | AE524: 195 | AF524: 215 | AG524: 235 | AH524: 250 | AI524: 260 | AJ524: 275 | AK524: 280 | AM524: 210 | AN524: 230 | AO524: 250 | AP524: 270 | AQ524: 290 | AR524: 300 | AS524: 310 | AT524: 325
W525: 250 | X525: 270 | Y525: 290 | Z525: 300 | AA525: 310 | AB525: 325 | AD525: 210 | AE525: 230 | AF525: 250 | AG525: 270 | AH525: 290 | AI525: 300 | AJ525: 310 | AK525: 325 | AM525: 230 | AN525: 255 | AO525: 275 | AP525: 300 | AQ525: 315 | AR525: 335 | AS525: 345 | AT525: 355
W526: 295 | X526: 320 | Y526: 335 | Z526: 355 | AA526: 370 | AB526: 380 | AD526: 245 | AE526: 270 | AF526: 295 | AG526: 320 | AH526: 335 | AI526: 355 | AJ526: 370 | AK526: 380 | AM526: 245 | AN526: 270 | AO526: 295 | AP526: 320 | AQ526: 335 | AR526: 355 | AS526: 370 | AT526: 380

Sheet Feuil1 (hidden)
C1: FC44 | D1: FC48 | E1: FC53 | F1: FC58 | G1: FC63 | H1: FC69 | I1: FC+69 | J1: FJ48 | K1: FJ53 | L1: FJ58 | M1: FJ63 | N1: FJ69 | O1: FJ75 | P1: FJ+75 | Q1: FS48 | R1: FS53 | S1: FS58 | T1: FS63 | U1: FS69 | V1: FS75 | W1: FS+75 | X1: C50 | Y1: C56 | Z1: C62 | AA1: C69 | AB1: C77 | AC1: C85 | AD1: C94 | AE1: C+94 | AF1: J56 | AG1: J62 | AH1: J69 | AI1: J77 | AJ1: J85 | AK1: J94 | AL1: J105 | AM1: J+105 | AN1: S56 | AO1: S62 | AP1: S69 | AQ1: S77 | AR1: S85 | AS1: S94 | AT1: S105 | AU1: S+105
B2: DEPARTEMENTAL | C2: 40 | D2: 45 | E2: 50 | F2: 55 | G2: 60 | H2: 65 | I2: 75 | J2: 50 | K2: 55 | L2: 65 | M2: 70 | N2: 75 | O2: 90 | P2: 100 | Q2: 60 | R2: 70 | S2: 80 | T2: 85 | U2: 95 | V2: 100 | W2: 110 | X2: 65 | Y2: 80 | Z2: 100 | AA2: 115 | AB2: 125 | AC2: 135 | AD2: 150 | AE2: 160 | AF2: 95 | AG2: 110 | AH2: 125 | AI2: 140 | AJ2: 155 | AK2: 165 | AL2: 175 | AM2: 185 | AN2: 110 | AO2: 130 | AP2: 145 | AQ2: 160 | AR2: 175 | AS2: 185 | AT2: 195 | AU2: 205
B3: REGIONAL | C3: 50 | D3: 55 | E3: 65 | F3: 70 | G3: 75 | H3: 80 | I3: 90 | J3: 60 | K3: 65 | L3: 75 | M3: 80 | N3: 85 | O3: 100 | P3: 110 | Q3: 70 | R3: 80 | S3: 90 | T3: 95 | U3: 105 | V3: 115 | W3: 125 | X3: 80 | Y3: 95 | Z3: 115 | AA3: 130 | AB3: 145 | AC3: 155 | AD3: 170 | AE3: 180 | AF3: 110 | AG3: 130 | AH3: 145 | AI3: 160 | AJ3: 175 | AK3: 185 | AL3: 195 | AM3: 205 | AN3: 130 | AO3: 150 | AP3: 165 | AQ3: 180 | AR3: 195 | AS3: 205 | AT3: 215 | AU3: 225
B4: INTERREGIONAL | C4: 60 | D4: 65 | E4: 75 | F4: 80 | G4: 85 | H4: 95 | I4: 105 | J4: 75 | K4: 80 | L4: 90 | M4: 95 | N4: 100 | O4: 115 | P4: 120 | Q4: 85 | R4: 95 | S4: 100 | T4: 110 | U4: 120 | V4: 130 | W4: 140 | X4: 95 | Y4: 110 | Z4: 130 | AA4: 150 | AB4: 165 | AC4: 180 | AD4: 190 | AE4: 205 | AF4: 130 | AG4: 150 | AH4: 165 | AI4: 185 | AJ4: 195 | AK4: 205 | AL4: 215 | AM4: 225 | AN4: 145 | AO4: 170 | AP4: 185 | AQ4: 205 | AR4: 220 | AS4: 230 | AT4: 240 | AU4: 250
B5: FEDERAL | C5: 70 | D5: 75 | E5: 85 | F5: 90 | G5: 95 | H5: 105 | I5: 115 | J5: 85 | K5: 95 | L5: 100 | M5: 110 | N5: 120 | O5: 130 | P5: 140 | Q5: 95 | R5: 105 | S5: 115 | T5: 125 | U5: 135 | V5: 145 | W5: 155 | X5: 110 | Y5: 125 | Z5: 145 | AA5: 160 | AB5: 180 | AC5: 195 | AD5: 210 | AE5: 220 | AF5: 145 | AG5: 165 | AH5: 185 | AI5: 205 | AJ5: 220 | AK5: 230 | AL5: 240 | AM5: 250 | AN5: 170 | AO5: 195 | AP5: 215 | AQ5: 235 | AR5: 250 | AS5: 260 | AT5: 270 | AU5: 280
B6: NATIONAL | C6: 80 | D6: 85 | E6: 95 | F6: 100 | G6: 110 | H6: 120 | I6: 130 | J6: 95 | K6: 105 | L6: 110 | M6: 125 | N6: 135 | O6: 145 | P6: 155 | Q6: 110 | R6: 120 | S6: 130 | T6: 140 | U6: 150 | V6: 160 | W6: 170 | X6: 120 | Y6: 140 | Z6: 160 | AA6: 175 | AB6: 195 | AC6: 215 | AD6: 225 | AE6: 235 | AF6: 170 | AG6: 190 | AH6: 215 | AI6: 235 | AJ6: 250 | AK6: 260 | AL6: 270 | AM6: 280 | AN6: 195 | AO6: 220 | AP6: 240 | AQ6: 265 | AR6: 280 | AS6: 290 | AT6: 300 | AU6: 310
B7: INTERNATIONAL B | C7: 90 | D7: 95 | E7: 105 | F7: 115 | G7: 125 | H7: 135 | I7: 145 | J7: 110 | K7: 120 | L7: 130 | M7: 140 | N7: 150 | O7: 160 | P7: 170 | Q7: 125 | R7: 140 | S7: 155 | T7: 165 | U7: 175 | V7: 180 | W7: 190 | X7: 135 | Y7: 155 | Z7: 175 | AA7: 190 | AB7: 210 | AC7: 230 | AD7: 240 | AE7: 250 | AF7: 190 | AG7: 215 | AH7: 240 | AI7: 270 | AJ7: 280 | AK7: 290 | AL7: 305 | AM7: 315 | AN7: 210 | AO7: 240 | AP7: 260 | AQ7: 290 | AR7: 310 | AS7: 320 | AT7: 330 | AU7: 340
B8: INTERNATIONAL A | C8: 100 | D8: 105 | E8: 115 | F8: 125 | G8: 135 | H8: 145 | I8: 155 | J8: 125 | K8: 135 | L8: 145 | M8: 155 | N8: 165 | O8: 175 | P8: 185 | Q8: 140 | R8: 160 | S8: 175 | T8: 185 | U8: 190 | V8: 195 | W8: 210 | X8: 150 | Y8: 175 | Z8: 195 | AA8: 215 | AB8: 235 | AC8: 250 | AD8: 260 | AE8: 270 | AF8: 215 | AG8: 235 | AH8: 260 | AI8: 280 | AJ8: 300 | AK8: 310 | AL8: 320 | AM8: 330 | AN8: 225 | AO8: 255 | AP8: 275 | AQ8: 310 | AR8: 330 | AS8: 340 | AT8: 350 | AU8: 360
B9: OLYMPIQUE | C9: 1000 | D9: 1000 | E9: 1000 | F9: 1000 | G9: 1000 | H9: 1000 | I9: 1000 | J9: 1000 | K9: 1000 | L9: 1000 | M9: 1000 | N9: 1000 | O9: 1000 | P9: 10000 | Q9: 155 | R9: 175 | S9: 190 | T9: 200 | U9: 205 | V9: 210 | W9: 225 | X9: 1000 | Y9: 1000 | Z9: 1000 | AA9: 1000 | AB9: 1000 | AC9: 10000 | AD9: 1000 | AE9: 1000 | AF9: 1000 | AG9: 1000 | AH9: 1000 | AI9: 10000 | AJ9: 1000 | AK9: 1000 | AL9: 1000 | AM9: 10000 | AN9: 240 | AO9: 270 | AP9: 290 | AQ9: 325 | AR9: 345 | AS9: 355 | AT9: 365 | AU9: 375
B10: MINIME | C10: CADET | D10: JUNIOR | E10: SENIOR | G10: MINIME | H10: CADETTE | I10: JUNIOR | J10: SENIOR
A11: 20.01 | B11: NON | C11: C50 | D11: J56 | E11: S56 | F11: 20.01 | G11: NON | H11: FC44 | I11: FJ48 | J11: FS48
A12: 34.01 | B12: NON | C12: C50 | D12: J56 | E12: S56 | F12: 30.01 | G12: NON | H12: FC44 | I12: FJ48 | J12: FS48
A13: 38.01 | B13: NON | C13: C50 | D13: J56 | E13: S56 | F13: 35.01 | G13: NON | H13: FC44 | I13: FJ48 | J13: FS48
A14: 40.01 | B14: NON | C14: C50 | D14: J56 | E14: S56 | F14: 36.01 | G14: NON | H14: FC44 | I14: FJ48 | J14: FS48
A15: 45.01 | B15: NON | C15: C50 | D15: J56 | E15: S56 | F15: 40.01 | G15: NON | H15: FC44 | I15: FJ48 | J15: FS48
A16: 50.01 | B16: NON | C16: C56 | D16: J56 | E16: S56 | F16: 44.01 | G16: NON | H16: FC48 | I16: FJ48 | J16: FS48
A17: 52.05 | B17: NON | C17: C56 | D17: J56 | E17: S56 | F17: 48.01 | G17: NON | H17: FC53 | I17: FJ53 | J17: FS53
A18: 56.01 | B18: NON | C18: C62 | D18: J62 | E18: S62 | F18: 53.01 | G18: NON | H18: FC58 | I18: FJ58 | J18: FS58
A19: 62.01 | B19: NON | C19: C69 | D19: J69 | E19: S69 | F19: 58.01 | G19: NON | H19: FC63 | I19: FJ63 | J19: FS63
A20: 69.01 | B20: NON | C20: C77 | D20: J77 | E20: S77 | F20: 63.01 | G20: NON | H20: FC69 | I20: FJ69 | J20: FS69
A21: 77.01 | B21: NON | C21: C85 | D21: J85 | E21: S85 | F21: 69.01 | G21: NON | H21: FC+69 | I21: FJ75 | J21: FS75
A22: 85.01 | B22: NON | C22: C94 | D22: J94 | E22: S94 | F22: 75.01 | G22: NON | H22: FC+69 | I22: FJ+75 | J22: FS+75
A23: 94.01 | B23: NON | C23: C+94 | D23: J105 | E23: S105 | F23: 110 | G23: NON | H23: FC+69 | I23: FJ+75 | J23: FS+75
A24: 105.01 | B24: NON | C24: C+94 | D24: J+105 | E24: S+105 | F24: 140 | G24: NON | H24: FC+69 | I24: FJ+75 | J24: FS+75
A25: 110 | B25: NON | C25: C+94 | D25: J+105 | E25: S+105
A26: 120 | B26: NON | C26: C+94 | D26: J+105 | E26: S+105
A27: 130 | B27: NON | C27: C+94 | D27: J+105 | E27: S+105
A28: 140 | B28: NON | C28: C+94 | D28: J+105 | E28: S+105

Sheet Feuil2
